fUST/lending_fUST_20250228
["ID","MTS","AMOUNT","RATE_DAILY","PERIOD"]
[354855479,1740744880021,-500.0,0.00057534,120]
[354855480,1740744880052,-500.0,0.00057534,120]
[354855481,1740744880084,-500.0,0.00057534,120]
[354855482,1740744880115,-500.0,0.00057534,120]
[354855483,1740744880145,-500.0,0.00057534,120]
[354855484,1740744880174,-500.0,0.00057534,120]
[354855485,1740744880203,-500.0,0.00057534,120]
[354855486,1740744880234,-500.0,0.00057534,120]
[354855487,1740744880264,-500.0,0.00057534,120]
[354855488,1740744880293,-500.0,0.00057534,120]
[354855489,1740744880321,-500.0,0.00057534,120]
[354855490,1740744880349,-500.0,0.00057534,120]
[354855491,1740744880377,-500.0,0.00057534,120]
[354855492,1740744880404,-500.0,0.00057534,120]
[354855493,1740744880433,-1673.35,0.00057534,120]
[354855494,1740744880461,-500.0,0.00057534,120]
[354855495,1740744880575,-631.37,0.00057534,120]
[354855496,1740744880608,-500.0,0.00057534,120]
[354855497,1740744880638,-500.0,0.00057534,120]
[354855498,1740744880669,-500.0,0.00057534,120]
[354855499,1740744880698,-500.0,0.00057534,120]
[354855500,1740744880726,-500.0,0.00057534,120]
[354855501,1740744880753,-500.0,0.00057534,120]
[354855502,1740744880782,-500.0,0.00057534,120]
[354855503,1740744880811,-500.0,0.00057534,120]
[354855504,1740744880839,-500.0,0.00057534,120]
[354855505,1740744880868,-502.1426938,0.00057534,120]
[354855506,1740744880897,-316.03495866,0.00057534,120]
[354855507,1740744880926,-500.0,0.00057534,120]
[354855508,1740744880954,-152.651255,0.00057534,120]
[354855509,1740744880983,-500.0,0.00057534,120]
[354855510,1740744881012,-592.28,0.00057534,120]
[354855511,1740744881042,-500.0,0.00057534,120]
[354855512,1740744881072,-500.0,0.00057534,120]
[354855513,1740744881102,-500.0,0.00057534,120]
[354855514,1740744881133,-513.00627099,0.00057534,120]
[354855515,1740744881163,-511.45442932,0.00057534,120]
[354855516,1740744881195,-500.0,0.00057534,120]
[354855517,1740744881226,-463.7678388,0.00057534,120]
[354855518,1740744881255,-500.0,0.00057534,120]
[354855519,1740744881284,-541.95826969,0.00057534,120]
[354855520,1740744881314,-1446.25,0.00057534,120]
[354855521,1740744881343,-500.0,0.00057534,120]
[354855522,1740744881372,-500.0,0.00057534,120]
[354855523,1740744881401,-500.0,0.00057534,120]
[354855524,1740744881430,-500.0,0.00057534,120]
[354855525,1740744881460,-500.0,0.00057534,120]
[354855526,1740744881489,-599.31,0.00057534,120]
[354855527,1740744881519,-500.0,0.00057534,120]
[354855528,1740744881548,-500.0,0.00057534,120]
[354855529,1740744881578,-1289.4,0.00057534,120]
[354855530,1740744881608,-1263.43,0.00057534,120]
[354855531,1740744881636,-500.0,0.00057534,120]
[354855532,1740744881663,-504.32029485,0.00057534,30]
[354855533,1740744881691,-500.0,0.00057534,120]
[354855534,1740744881719,-456.82780743,0.00057534,120]
[354855535,1740744881747,-500.0,0.00057534,120]
[354855536,1740744881775,-500.0,0.00057534,120]
[354855537,1740744881804,-500.0,0.00057534,120]
[354855538,1740744881833,-500.0,0.00057534,120]
[354855539,1740744881862,-500.0,0.00057534,120]
[354855540,1740744881891,-500.0,0.00057534,120]
[354855541,1740744881919,-401.69165753,0.00057534,120]
[354855542,1740744881949,-500.0,0.00057534,120]
[354855543,1740744881979,-500.0,0.00057534,30]
[354855544,1740744882008,-572.57,0.00057534,120]
[354855545,1740744882038,-500.0,0.00057534,120]
[354855546,1740744882066,-500.0,0.00057534,120]
[354855547,1740744882176,-500.0,0.00057534,120]
[354855548,1740744882207,-417.69501357,0.00057534,120]
[354855549,1740744882237,-500.0,0.00057534,120]
[354855550,1740744882267,-500.0,0.00057534,120]
[354855551,1740744882296,-500.0,0.00057534,120]
[354855552,1740744882327,-500.0,0.00057534,120]
[354855553,1740744882357,-500.0,0.00057534,120]
[354855554,1740744882387,-500.0,0.00057534,120]
[354855555,1740744882418,-500.0,0.00057534,120]
[354855556,1740744882447,-500.0,0.00057534,120]
[354855557,1740744882477,-500.0,0.00057534,120]
[354855558,1740744882507,-505.25911399,0.00057534,120]
[354855559,1740744882537,-500.0,0.00057534,120]
[354855560,1740744882568,-500.0,0.00057534,120]
[354855561,1740744882600,-503.08916159,0.00057534,120]
[354855562,1740744882633,-500.0,0.00057534,120]
[354855563,1740744882666,-500.0,0.00057534,120]
[354855564,1740744882699,-500.0,0.00057534,120]
[354855565,1740744882732,-500.0,0.00057534,120]
[354855566,1740744882765,-500.0,0.00057534,120]
[354855567,1740744882797,-500.0,0.00057534,120]
[354855568,1740744882828,-500.0,0.00057534,120]
[354855569,1740744882861,-500.0,0.00057534,120]
[354855570,1740744882892,-987.23,0.00057534,120]
[354855571,1740744882923,-506.09215859,0.00057534,120]
[354855572,1740744882955,-500.0,0.00057534,120]
[354855573,1740744882984,-500.0,0.00057534,120]
[354855574,1740744883014,-500.0,0.00057534,120]
[354855575,1740744883044,-500.0,0.00057534,120]
[354855576,1740744883078,-500.0,0.00057534,120]
[354855577,1740744883111,-500.0,0.00057534,120]
[354855578,1740744883142,-500.0,0.00057534,120]
[354855579,1740744883177,-500.0,0.00057534,120]
[354855580,1740744883207,-611.51,0.00057534,120]
[354855581,1740744883238,-500.0,0.00057534,120]
[354855582,1740744883268,-500.0,0.00057534,120]
[354855583,1740744883299,-500.0,0.00057534,120]
[354855584,1740744883328,-304.53440615,0.00057534,120]
[354855585,1740744883358,-500.0,0.00057534,120]
[354855586,1740744883387,-500.0,0.00057534,120]
[354855587,1740744883417,-500.0,0.00057534,120]
[354855588,1740744883446,-500.0,0.00057534,120]
[354855589,1740744883475,-500.0,0.00057534,120]
[354855590,1740744883504,-500.0,0.00057534,120]
[354855591,1740744883532,-500.0,0.00057534,120]
[354855592,1740744883563,-500.0,0.00057534,120]
[354855593,1740744883593,-151.0,0.00057534,120]
[354855594,1740744883622,-500.0,0.00057534,120]
[354855595,1740744883652,-151.0,0.00057534,120]
[354855596,1740744883760,-151.0,0.00057534,120]
[354855597,1740744883791,-33618.89,0.00057534,7]
[354855598,1740744883822,-500.0,0.00057534,120]
[354855599,1740744883851,-507.78733671,0.00057534,120]
[354855600,1740744883880,-151.0,0.00057534,120]
[354855601,1740744883911,-20295.9,0.00057534,120]
[354855602,1740744883940,-286.651061,0.00057534,120]
[354855603,1740744883968,-500.0,0.00057534,120]
[354855604,1740744883997,-500.0,0.00057534,120]
[354855605,1740744884026,-500.0,0.00057534,120]
[354855606,1740744884055,-549.11,0.00057534,120]
[354855607,1740744884088,-500.0,0.00057534,120]
[354855608,1740744884119,-500.0,0.00057534,120]
[354855609,1740744884151,-1116.13,0.00057534,120]
[354855610,1740744884182,-500.0,0.00057534,120]
[354855611,1740744884213,-503.94911697,0.00057534,120]
[354855612,1740744884242,-500.0,0.00057534,120]
[354855613,1740744884271,-332.07912643,0.00057534,120]
[354855614,1740744884301,-500.0,0.00057534,120]
[354855615,1740744884333,-500.0,0.00057534,120]
[354855616,1740744884363,-723.98,0.00057534,120]
[354855617,1740744884391,-970.53,0.00057534,120]
[354855618,1740744884420,-500.0,0.00057534,120]
[354855619,1740744884449,-500.0,0.00057534,120]
[354855620,1740744884478,-730.24,0.00057534,120]
[354855621,1740744884505,-500.0,0.00057534,120]
[354855622,1740744884534,-500.0,0.00057534,120]
[354855623,1740744884562,-500.0,0.00057534,120]
[354855624,1740744884590,-502.58473087,0.00057534,120]
[354855625,1740744884618,-500.0,0.00057534,120]
[354855626,1740744884646,-500.0,0.00057534,120]
[354855627,1740744884674,-500.0,0.00057534,120]
[354855628,1740744884702,-500.0,0.00057534,120]
[354855629,1740744884730,-45142.24,0.00057534,120]
[354855630,1740744884759,-500.0,0.00057534,120]
[354855631,1740744884787,-500.0,0.00057534,120]
[354855632,1740744884817,-923.13,0.00057534,120]
[354855633,1740744884848,-500.0,0.00057534,120]
[354855634,1740744884878,-500.0,0.00057534,120]
[354855635,1740744884908,-500.0,0.00057534,120]
[354855636,1740744884939,-500.0,0.00057534,120]
[354855637,1740744884972,-510.08,0.00057534,120]
[354855638,1740744885004,-500.0,0.00057534,120]
[354855639,1740744885035,-500.0,0.00057534,120]
[354855640,1740744885067,-500.0,0.00057534,120]
[354855641,1740744885100,-500.0,0.00057534,120]
[354855642,1740744885132,-503.26557077,0.00057534,120]
[354855643,1740744885164,-500.0,0.00057534,120]
[354855644,1740744885270,-500.0,0.00057534,120]
[354855645,1740744885301,-602.59,0.00057534,120]
[354855646,1740744885330,-500.0,0.00057534,120]
[354855647,1740744885360,-500.0,0.00057534,120]
[354855648,1740744885388,-500.0,0.00057534,120]
[354855649,1740744885415,-500.0,0.00057534,120]
[354855650,1740744885444,-500.0,0.00057534,120]
[354855651,1740744885471,-500.0,0.00057534,120]
[354855652,1740744885499,-500.0,0.00057534,120]
[354855653,1740744885527,-500.0,0.00057534,120]
[354855654,1740744885555,-500.0,0.00057534,120]
[354855655,1740744885583,-1040.71,0.00057534,120]
[354855656,1740744885610,-500.0,0.00057534,120]
[354855657,1740744885636,-500.0,0.00057534,120]
[354855658,1740744885664,-500.0,0.00057534,120]
[354855659,1740744885692,-761.4,0.00057534,120]
[354855660,1740744885719,-2562.48,0.00057534,120]
[354855661,1740744885748,-500.0,0.00057534,120]
[354855662,1740744885776,-654.54,0.00057534,120]
[354855663,1740744885803,-500.0,0.00057534,120]
[354855664,1740744885831,-500.0,0.00057534,120]
[354855665,1740744885859,-510.35,0.00057534,120]
[354855666,1740744885887,-500.0,0.00057534,120]
[354855667,1740744885916,-500.0,0.00057534,120]
[354855668,1740744885945,-500.0,0.00057534,120]
[354855669,1740744885973,-500.0,0.00057534,120]
[354855670,1740744886001,-507.88720503,0.00057534,30]
[354855671,1740744886030,-500.0,0.00057534,120]
[354855672,1740744886058,-500.0,0.00057534,120]
[354855673,1740744886089,-500.0,0.00057534,120]
[354855674,1740744886117,-500.0,0.00057534,120]
[354855675,1740744886148,-500.0,0.00057534,120]
[354855676,1740744886177,-500.0,0.00057534,120]
[354855677,1740744886206,-500.0,0.00057534,120]
[354855678,1740744886235,-504.62970207,0.00057534,120]
[354855679,1740744886262,-561.07,0.00057534,120]
[354855680,1740744886290,-500.0,0.00057534,120]
[354855681,1740744886319,-500.0,0.00057534,120]
[354855682,1740744886347,-500.0,0.00057534,30]
[354855683,1740744886375,-500.0,0.00057534,120]
[354855684,1740744886402,-500.0,0.00057534,120]
[354855685,1740744886430,-500.0,0.00057534,120]
[354855686,1740744886457,-500.0,0.00057534,120]
[354855687,1740744886484,-505.6071462,0.00057534,120]
[354855688,1740744886513,-500.0,0.00057534,120]
[354855689,1740744886540,-483.00450141,0.00057534,15]
[354856024,1740745718308,539.46494754,0.00019177,4]
[354856025,1740745718652,500.00122586,0.000145,2]
[354856063,1740745832264,-2888.64,0.00035,2]
[354856065,1740745832275,-1291.7856783,0.00044311,2]
[354856066,1740745832285,-250.0,0.00045101,2]
[354856067,1740745832295,-550.0,0.00047186,5]
[354856068,1740745832305,-235.5110478,0.00047187,2]
[354856069,1740745832314,-827.8611916,0.00048331,2]
[354856070,1740745832325,-24900.0,0.00048331,2]
[354856071,1740745832334,-2204.75091512,0.0004988,2]
[354856072,1740745832344,-206.7330582,0.000499,11]
[354856073,1740745832353,-699.0,0.00049955,5]
[354856074,1740745832363,-3051.53066872,0.00053577,28]
[354856075,1740745832373,-936.73674591,0.00053677,2]
[354856076,1740745832385,-208.4444279,0.00053677,4]
[354856077,1740745832394,-1000.0,0.00054,120]
[354856078,1740745832405,-2000.0,0.0005449,120]
[354856079,1740745832416,-477.14476395,0.0005459,2]
[354856080,1740745832426,-11589.08179131,0.0005459,120]
[354856081,1740745832435,-477.14476392,0.00054616,2]
[354856082,1740745832444,-477.14476392,0.00054642,2]
[354856083,1740745832454,-151.0,0.00054657,2]
[354856084,1740745832464,-151.29239035,0.00054658,30]
[354856085,1740745832473,-477.14476392,0.00054668,2]
[354856086,1740745832483,-758.61763431,0.00054669,10]
[354856087,1740745832495,-3620.72113976,0.00054669,10]
[354856088,1740745832510,-1294.19846365,0.00054669,10]
[354856089,1740745832530,-6662.5,0.00054669,10]
[354856092,1740745838261,-4771.18276228,0.00054669,10]
[354856093,1740745838271,-14256.01,0.00054669,10]
[354856094,1740745838281,-162.89,0.0005467,30]
[354856095,1740745838390,-24634.39,0.0005467,10]
[354856096,1740745838401,-20528.66,0.00054679,10]
[354856097,1740745838414,-214.81997123,0.00054688,31]
[354856098,1740745838423,-500.0,0.00054688,120]
[354856099,1740745838433,-500.0,0.00054688,31]
[354856100,1740745838442,-500.0,0.00054688,120]
[354856101,1740745838452,-500.0,0.00054688,120]
[354856102,1740745838462,-500.0,0.00054688,120]
[354856103,1740745838472,-500.0,0.00054688,120]
[354856104,1740745838483,-500.0,0.00054688,2]
[354856105,1740745838492,-500.0,0.00054688,120]
[354856106,1740745838502,-500.0,0.00054688,120]
[354856107,1740745838512,-500.0,0.00054688,31]
[354856108,1740745838522,-500.0,0.00054688,120]
[354856109,1740745838532,-500.0,0.00054688,120]
[354856110,1740745838542,-500.0,0.00054688,2]
[354856111,1740745838551,-500.0,0.00054688,120]
[354856112,1740745838560,-500.0,0.00054688,120]
[354856113,1740745838570,-500.0,0.00054688,120]
[354856114,1740745838581,-500.0,0.00054688,2]
[354856115,1740745838591,-620.0,0.00054688,120]
[354856116,1740745838600,-154.426788,0.00054688,120]
[354856117,1740745838609,-500.0,0.00054688,120]
[354856118,1740745838619,-500.0,0.00054688,2]
[354856119,1740745838628,-500.0,0.00054688,120]
[354856120,1740745838640,-500.0,0.00054688,120]
[354856121,1740745838649,-500.0,0.00054688,2]
[354856122,1740745838658,-500.0,0.00054688,120]
[354856123,1740745838667,-500.0,0.00054688,120]
[354856124,1740745838676,-500.0,0.00054688,2]
[354856125,1740745838686,-500.0,0.00054688,120]
[354856126,1740745838695,-500.0,0.00054688,120]
[354856127,1740745838705,-500.0,0.00054688,120]
[354856128,1740745838714,-500.0,0.00054688,2]
[354856129,1740745838723,-215.35518679,0.00054688,120]
[354856130,1740745838732,-500.0,0.00054688,2]
[354856131,1740745838741,-500.0,0.00054688,120]
[354856132,1740745838751,-500.0,0.00054688,120]
[354856133,1740745838760,-500.0,0.00054688,120]
[354856134,1740745838769,-596.86156949,0.00054688,2]
[354856135,1740745838778,-273.254555,0.00054688,120]
[354856136,1740745838787,-500.0,0.00054688,2]
[354856137,1740745838797,-647.07430865,0.00054688,120]
[354856138,1740745838807,-500.0,0.00054688,120]
[354856139,1740745838816,-500.0,0.00054688,120]
[354856140,1740745838825,-500.0,0.00054688,2]
[354856141,1740745838835,-500.0,0.00054688,120]
[354856142,1740745838844,-500.0,0.00054688,2]
[354856143,1740745838854,-500.0,0.00054688,120]
[354856144,1740745838863,-500.0,0.00054688,2]
[354856145,1740745838873,-500.0,0.00054688,120]
[354856146,1740745838884,-500.0,0.00054688,2]
[354856147,1740745838894,-500.0,0.00054688,2]
[354856148,1740745838903,-500.0,0.00054688,2]
[354856149,1740745838915,-500.0,0.00054688,2]
[354856150,1740745838925,-500.0,0.00054688,2]
[354856151,1740745838935,-500.0,0.00054688,2]
[354856152,1740745838945,-500.0,0.00054689,30]
[354856153,1740745838955,-207.89451888,0.00054689,30]
[354856154,1740745838964,-71112.53261818,0.0005469,2]
[354856155,1740745839129,-150887.46738182,0.0005469,2]
[354856156,1740745839140,-18715.40393547,0.00054694,120]
[354856195,1740746104931,301.95060911,0.0003,120]
[354856196,1740746128044,1618.66,0.0003,30]
[354856198,1740746342565,-700.44124047,0.00033,30]
[354856199,1740746342593,-177.4963223,0.00039647,120]
[354856637,1740746813114,-347.43268879,0.000359,2]
[354856638,1740746813136,-280.79768062,0.00036,10]
[354856639,1740746850812,500.0,0.00033,30]
[354856641,1740746852096,-219.20231938,0.00036,10]
[354856642,1740746852133,-500.0,0.00036,10]
[354856643,1740746852170,-151.0,0.00045,120]
[354856644,1740746852205,-235.511048,0.00045795,2]
[354856645,1740746852241,-499.0,0.00047896,5]
[354856646,1740746852277,-24900.0,0.00047897,2]
[354856647,1740746852313,-8233.18955432,0.000491,120]
[354856648,1740746852347,-158.0,0.000492,120]
[354856649,1740746852382,-227.262744,0.000499,11]
[354856650,1740746852416,-151.0,0.0005063,120]
[354856651,1740746852450,-167.0,0.00051,120]
[354856652,1740746852484,-158.0,0.000514,120]
[354856653,1740746852519,-756.32859377,0.0005259,4]
[354856654,1740746852554,-500.0,0.00052602,30]
[354856655,1740746852588,-254.08337745,0.00053,120]
[354856656,1740746852702,-500.0,0.0005315,35]
[354856657,1740746852759,-158.0,0.000536,120]
[354856658,1740746852783,-317.1005346,0.00053677,4]
[354856659,1740746852803,-500.0,0.00053698,40]
[354856660,1740746852826,-8080.722473,0.00054,120]
[354856661,1740746852846,-500.0,0.00054246,45]
[354856662,1740746852866,-157.65467576,0.000545,2]
[354856663,1740746852886,-151.0,0.00054556,2]
[354856664,1740746852908,-151.0,0.00054556,2]
[354856665,1740746852928,-172.11351106,0.00054565,103]
[354856666,1740746852949,-157.65467573,0.00054565,2]
[354856667,1740746852971,-198.474,0.00054565,103]
[354856668,1740746852991,-162.12,0.00054569,30]
[354856669,1740746853012,-810.63,0.00054569,30]
[354856670,1740746853033,-700.38,0.00054578,30]
[354856671,1740746853056,-168.09,0.00054578,30]
[354856672,1740746853077,-233.45,0.00054578,30]
[354856673,1740746853099,-194.55,0.00054578,30]
[354856674,1740746853120,-280.15,0.00054579,30]
[354856675,1740746853141,-636.87770414,0.00054588,120]
[354856676,1740746853163,-308.139395,0.00054588,120]
[354856677,1740746853186,-500.0,0.00054588,2]
[354856678,1740746853208,-180.0,0.00054588,120]
[354856679,1740746853229,-500.0,0.00054588,120]
[354856680,1740746853255,-500.0,0.00054588,120]
[354856681,1740746853278,-500.0,0.00054588,120]
[354856682,1740746853302,-500.0,0.00054588,2]
[354856683,1740746853324,-500.0,0.00054588,120]
[354856684,1740746853347,-500.0,0.00054588,120]
[354856685,1740746853373,-500.0,0.00054588,120]
[354856686,1740746853397,-500.0,0.00054588,2]
[354856687,1740746853426,-240.18565807,0.00054588,120]
[354856688,1740746853451,-414.70743087,0.00054588,120]
[354856689,1740746853476,-500.0,0.00054588,2]
[354856690,1740746853503,-319.86407212,0.00054588,2]
[354856691,1740746853526,-500.0,0.00054588,2]
[354856692,1740746853551,-500.0,0.00054588,120]
[354856693,1740746853573,-500.0,0.00054588,120]
[354856694,1740746853598,-500.0,0.00054588,2]
[354856695,1740746853621,-500.0,0.00054588,120]
[354856696,1740746853642,-500.0,0.00054588,120]
[354856697,1740746853665,-500.0,0.00054588,120]
[354856698,1740746853687,-500.0,0.00054588,120]
[354856699,1740746853708,-500.0,0.00054588,120]
[354856700,1740746853729,-500.0,0.00054588,120]
[354856701,1740746853755,-500.0,0.00054588,2]
[354856702,1740746853778,-500.0,0.00054588,120]
[354856703,1740746853801,-500.0,0.00054588,120]
[354856704,1740746853826,-500.0,0.00054588,2]
[354856705,1740746853847,-591.36596784,0.00054588,120]
[354856706,1740746853869,-500.0,0.00054588,120]
[354856707,1740746853892,-500.0,0.00054588,120]
[354856708,1740746853915,-500.0,0.00054588,120]
[354856709,1740746853939,-500.0,0.00054588,120]
[354856710,1740746853961,-500.0,0.00054588,2]
[354856711,1740746853983,-534.80104562,0.00054588,120]
[354856712,1740746854005,-500.0,0.00054588,120]
[354856713,1740746854028,-500.0,0.00054588,2]
[354856714,1740746854052,-500.0,0.00054588,120]
[354856715,1740746854075,-500.0,0.00054588,120]
[354856716,1740746854098,-500.0,0.00054588,2]
[354856717,1740746854120,-500.0,0.00054588,120]
[354856718,1740746854141,-377.25646866,0.00054588,31]
[354856719,1740746854162,-500.0,0.00054588,31]
[354856720,1740746854184,-500.0,0.00054588,120]
[354856721,1740746854206,-500.0,0.00054588,120]
[354856722,1740746854228,-500.0,0.00054588,120]
[354856723,1740746854253,-500.0,0.00054588,120]
[354856724,1740746854276,-500.0,0.00054588,120]
[354856725,1740746854374,-500.0,0.00054588,120]
[354856726,1740746854408,-500.0,0.00054588,120]
[354856727,1740746854432,-222000.0,0.00054589,2]
[354856728,1740746854455,-1000.0,0.000546,120]
[354856729,1740746854477,-202.41,0.000546,30]
[354856730,1740746854504,-3264.26,0.000546,30]
[354856731,1740746854527,-1191.25,0.000546,30]
[354856732,1740746854550,-438.77,0.000546,30]
[354856733,1740746854572,-64204.19,0.000546,30]
[354856734,1740746854596,-157.65467573,0.00054629,2]
[354856735,1740746854618,-3000.0,0.0005465,120]
[354856736,1740746854639,-1866.69784821,0.0005468,120]
[354856737,1740746854660,-2.68530352,0.00054694,120]
[354856844,1740747038543,-899.0,0.00034,30]
[354856846,1740747038554,-30689.43184865,0.00052,120]
[354856848,1740747038564,-504.21906251,0.000525,4]
[354856850,1740747038575,-237.8254009,0.00053677,4]
[354856851,1740747038585,-19748.59,0.00054479,10]
[354856852,1740747038595,-157.18971454,0.00054488,120]
[354856853,1740747038606,-313.31823024,0.00054488,2]
[354856854,1740747038617,-222000.0,0.00054489,2]
[354856855,1740747038627,-6000.0,0.00054489,120]
[354856856,1740747038639,-369.50393467,0.000545,2]
[354856857,1740747038648,-182.17,0.000545,30]
[354856858,1740747038659,-3376.51,0.000545,30]
[354856859,1740747038669,-1230.44,0.000545,30]
[354856860,1740747038679,-369.50393466,0.00054543,2]
[354856861,1740747038689,-500.0,0.00054573,10]
[354856862,1740747038699,-161.22247608,0.00054573,10]
[354856863,1740747038709,-503.05758259,0.00054573,10]
[354856864,1740747038719,-500.0,0.00054573,10]
[354856865,1740747038728,-151.2166337,0.00054573,2]
[354856866,1740747038738,-500.0,0.00054573,10]
[354856867,1740747038748,-500.0,0.00054573,10]
[354856868,1740747038758,-360.2453854,0.00054573,10]
[354856869,1740747038767,-209.8560802,0.00054573,7]
[354856870,1740747038777,-266.59793989,0.00054573,10]
[354856871,1740747038789,-369.50393466,0.00054585,2]
[354856872,1740747038800,-187.04754351,0.00054599,120]
[354856873,1740747038810,-500.0,0.00054599,120]
[354856874,1740747038820,-272.19365963,0.00054599,120]
[354856875,1740747038831,-500.0,0.00054599,31]
[354856876,1740747038840,-500.0,0.00054599,120]
[354856877,1740747038851,-263.58263321,0.00054599,120]
[354856878,1740747038860,-500.0,0.00054599,120]
[354856879,1740747038870,-343.51046616,0.00054599,31]
[354856880,1740747038882,-500.0,0.00054599,120]
[354856881,1740747038893,-380.24781935,0.00054599,120]
[354856882,1740747038903,-488979.39945706,0.000546,120]
[354856883,1740747038914,-20000.0,0.000546,120]
[354856884,1740747038923,-409.9,0.000546,30]
[354856885,1740747038934,-20000.0,0.000546,120]
[354856886,1740747038944,-51130.39799326,0.000546,30]
[354856887,1740747039911,-12008.33200674,0.000546,30]
[354856888,1740747039921,-369.50393466,0.00054628,2]
[354856889,1740747039931,-286.0,0.0005464,96]
[354856890,1740747039941,-369.50393466,0.0005467,2]
[354856891,1740747039951,-3127.67220109,0.00054694,120]
[354856914,1740747040925,-2917.81,0.00054694,120]
[354856979,1740747044863,-233.97281435,0.00054694,120]
[354857007,1740747047107,-1687.32014422,0.00054694,120]
[354857009,1740747048549,-130579.79259198,0.00054489,2]
[354857010,1740747048560,-47585.53953682,0.00054694,120]
[354857011,1740747048570,-12620.18165392,0.00054694,120]
[354857012,1740747048580,-509.28489223,0.0005477,60]
[354857013,1740747048591,-500.0,0.00054773,10]
[354857014,1740747048601,-500.0,0.00054773,7]
[354857015,1740747048611,-500.0,0.00054773,10]
[354857016,1740747048621,-156.51490957,0.00054773,5]
[354857017,1740747048632,-500.0,0.00054773,10]
[354857018,1740747048642,-501.82480816,0.00054773,10]
[354857019,1740747048652,-500.0,0.00054773,10]
[354857020,1740747048663,-500.0,0.00054773,10]
[354857021,1740747048674,-500.0,0.00054773,10]
[354857022,1740747048685,-500.0,0.00054773,10]
[354857023,1740747048695,-394.29913328,0.00054773,10]
[354857024,1740747048704,-500.0,0.00054773,10]
[354857025,1740747048714,-500.0,0.00054773,10]
[354857026,1740747048724,-500.0,0.00054773,2]
[354857027,1740747048734,-502.118915,0.00054773,10]
[354857028,1740747048744,-500.0,0.00054773,10]
[354857029,1740747048754,-500.0,0.00054773,10]
[354857030,1740747048764,-500.0,0.00054773,10]
[354857031,1740747048774,-500.0,0.00054773,10]
[354857032,1740747048784,-500.0,0.00054794,2]
[354857033,1740747048797,-500.0,0.00054794,120]
[354857034,1740747048807,-463.94485795,0.00054794,120]
[354857035,1740747048817,-500.0,0.00054794,2]
[354857036,1740747048830,-350.14763968,0.00054794,2]
[354857037,1740747048840,-505.1923822,0.00054794,120]
[354857038,1740747048850,-299.2327924,0.00054794,120]
[354857039,1740747048859,-187.52255501,0.00054794,120]
[354857040,1740747048870,-500.0,0.00054794,120]
[354857041,1740747048880,-1039.3,0.00054794,120]
[354857042,1740747048892,-500.0,0.00054794,120]
[354857043,1740747048903,-500.0,0.00054794,120]
[354857044,1740747048914,-500.0,0.00054794,120]
[354857045,1740747048923,-500.0,0.00054794,120]
[354857046,1740747048933,-500.0,0.00054794,120]
[354857047,1740747048943,-517.06600427,0.00054794,120]
[354857048,1740747048953,-500.0,0.00054794,120]
[354857049,1740747048963,-500.0,0.00054794,120]
[354857050,1740747048974,-500.0,0.00054794,120]
[354857051,1740747048984,-386.39122785,0.00054794,120]
[354857052,1740747049064,-113.60877215,0.00054794,120]